fUSD/lending_fUSD_20240218
["ID","MTS","AMOUNT","RATE_DAILY","PERIOD"]
[314402574,1708289444078,-1327.74911207,0.00037908,2]
[314402575,1708289444088,-1295.8210605,0.0003796,2]
[314402576,1708289444099,-714.13809473,0.00037969,2]
[314402577,1708289444109,-10469.65080296,0.00037969,2]
[314402578,1708289444120,-500.0,0.0003798,2]
[314402579,1708289444131,-500.0,0.0003798,2]
[314402580,1708289444141,-500.0,0.0003798,2]
[314402581,1708289444152,-521.40505798,0.0003798,2]
[314402582,1708289444163,-530.53555462,0.00037992,2]
[314402583,1708289444174,-501.58069433,0.00037999,2]
[314402584,1708289444184,-500.0,0.00037999,2]
[314402585,1708289444195,-500.0,0.00037999,2]
[314402586,1708289444205,-585.01,0.00037999,2]
[314402587,1708289444219,-500.0,0.00037999,2]
[314402588,1708289444231,-500.0,0.00037999,2]
[314402589,1708289444241,-50200.0,0.00038,3]
[314402590,1708289444253,-564.91533738,0.00038062,2]
[314402591,1708289444265,-561.4500242,0.00038062,2]
[314402592,1708289444276,-259.05941548,0.00038062,2]
[314402593,1708289444288,-210.58168001,0.00038062,7]
[314402594,1708289444298,-152.58867806,0.00038072,2]
[314402595,1708289444309,-155.15958089,0.00038072,2]
[314402596,1708289444320,-184.28394639,0.00038073,11]
[314402597,1708289444331,-151.021934,0.00038081,28]
[314402598,1708289444341,-151.021934,0.00038081,29]
[314402599,1708289444353,-151.021934,0.00038081,30]
[314402600,1708289444363,-151.021934,0.00038081,31]
[314402601,1708289444374,-9739.51011187,0.00038082,14]
[314402602,1708289444384,-2867.10834371,0.00038082,12]
[314402603,1708289444398,-5482.50476545,0.00038082,14]
[314402604,1708289444407,-500.0,0.00038082,2]
[314402605,1708289444417,-243.5968,0.00038082,2]
[314402606,1708289444426,-79603.2310043,0.00038082,3]
[314402607,1708289444436,-72909.49821692,0.00038082,3]
[314402608,1708289444449,-86296.96379208,0.00038082,3]
[314402609,1708289444458,-270.00000001,0.00038092,2]
[314402610,1708289444467,-500.0,0.00038092,2]
[314402611,1708289444476,-500.0,0.00038092,2]
[314402612,1708289444485,-500.0,0.00038092,2]
[314402613,1708289444495,-500.0,0.00038092,2]
[314402614,1708289444504,-500.0,0.00038092,2]
[314402615,1708289444514,-528.47,0.00038092,2]
[314402616,1708289444524,-558.89,0.00038092,2]
[314402617,1708289444533,-500.0,0.00038092,2]
[314402618,1708289444542,-500.0,0.00038092,2]
[314402619,1708289444551,-263.98,0.00038092,2]
[314402620,1708289444561,-585.01,0.00038092,2]
[314402621,1708289444801,-585.01,0.00038092,2]
[314402622,1708289444818,-500.0,0.00038092,2]
[314402623,1708289444838,-500.0,0.00038092,2]
[314402624,1708289444849,-500.0,0.00038092,2]
[314402625,1708289444859,-304.69210553,0.00038092,2]
[314402626,1708289444868,-570831.51250136,0.00038092,3]
[314402627,1708289444880,-744.35003871,0.00038092,3]
[314402628,1708289444892,-986.6725185,0.00038092,3]
[314402629,1708289445755,-36756.67249903,0.00038092,3]
[314402630,1708289445766,-27593.50280268,0.00038092,3]
[314402631,1708289445777,-12371.6205,0.00038092,3]
[314402632,1708289445788,-28212.1837897,0.00038092,3]
[314402633,1708289445915,-7353.1344418,0.00038092,3]
[314402634,1708289445928,-2032.84581834,0.00038092,3]
[314402635,1708289470141,1950.47808365,0.00023,2]
[314402636,1708289470167,4996.65808365,0.00023,2]
[314402637,1708289470197,4996.65808365,0.00023,2]
[314402638,1708289470221,4996.65808365,0.00023,2]
[314402639,1708289470245,4996.65808365,0.00023,2]
[314402640,1708289470269,4996.65808365,0.00023,2]
[314402641,1708289470294,4996.65808365,0.00023,2]
[314402642,1708289470317,4996.65808365,0.00023,2]
[314402643,1708289470340,4996.65808365,0.00023,2]
[314402644,1708289470363,496.65808365,0.00023,2]
[314402645,1708289470388,1286311.16849442,0.00023,2]
[314402646,1708289515819,155.0,0.00023,2]
[314402647,1708289531822,155.0,0.00023,2]
[314402648,1708289553818,229.63928699,0.00023,2]
[314402658,1708290631706,-414.74142257,0.00023392,2]
[314402660,1708290631717,-155.0,0.00023393,2]
[314402661,1708290631727,-203.22520032,0.00023498,2]
[314402662,1708290631739,-368.43641399,0.000237,2]
[314402663,1708290631753,-583.71000234,0.000237,2]
[314402664,1708290631814,-3238.785009,0.000237,2]
[314402665,1708290631824,-154.81637289,0.00023792,2]
[314402666,1708290631833,-780.643079,0.00023892,2]
[314402667,1708290631842,-228.74225568,0.00024012,2]
[314402668,1708290631851,-152.99798783,0.00024666,2]
[314402669,1708290631862,-1.81838494,0.00024666,2]
[314402670,1708290631872,-499.99,0.00025089,2]
[314402671,1708290631881,-150.0,0.00025089,2]
[314402672,1708290631890,-150.0,0.00025089,2]
[314402673,1708290631900,-178.14011623,0.0002509,2]
[314402674,1708290631912,-641.78023561,0.0002509,2]
[314402675,1708290631976,-1954.29548376,0.0002509,2]
[314402676,1708290631986,-10681.57541921,0.0002509,2]
[314402677,1708290631995,-154.81637277,0.00025541,2]
[314402678,1708290632004,-711.66,0.00026158,2]
[314402679,1708290632014,-448.17224542,0.000263,2]
[314402680,1708290632025,-154.81637277,0.00026415,2]
[314402682,1708290632034,-14179.26084277,0.0002705,2]
[314402683,1708290632056,-550.0,0.0002705,2]
[314402685,1708290638051,-5270.73915723,0.0002705,2]
[314402686,1708290638060,-154.81637277,0.00027289,2]
[314402687,1708290638072,-8281.342725,0.00028,2]
[314402691,1708290641381,-4541.5408699,0.00028,2]
[314402692,1708290641398,-321.65752223,0.00028,2]
[314402693,1708290641410,-255.29,0.00028,2]
[314402699,1708290646013,-184.98362258,0.00027189,2]
[314402700,1708290646023,-2123.51677465,0.00028,2]
[314402728,1708291831987,-1048.05810516,0.00024999,2]
[314402729,1708291831998,-550.0,0.00025,3]
[314402730,1708291832009,-180.4785,0.00026127,2]
[314402731,1708291832020,-782.48,0.00026227,2]
[314402732,1708291832031,-150.0,0.00026397,2]
[314402733,1708291832041,-8800.22,0.00026824,2]
[314402734,1708291832052,-458.66,0.00026848,2]
[314402735,1708291832065,-1155.99,0.0002691,2]
[314402736,1708291832076,-150.0,0.00026945,2]
[314402737,1708291832086,-250.0,0.00026997,2]
[314402738,1708291832097,-600.0,0.00027,3]
[314402739,1708291832110,-250.0,0.00027043,2]
[314402740,1708291832120,-200.0,0.00027358,2]
[314402741,1708291832131,-150.0,0.00027396,2]
[314402742,1708291832142,-155.0,0.00027397,2]
[314402743,1708291832153,-150.99,0.00027397,2]
[314402744,1708291832163,-63903.15,0.00027397,2]
[314402745,1708291832174,-154.73135927,0.00027448,2]
[314402746,1708291832184,-259.55585677,0.00027493,2]
[314402747,1708291832194,-1295.82106052,0.00027661,2]
[314402748,1708291832205,-499.99,0.00027734,2]
[314402749,1708291832215,-1295.82106052,0.00027783,2]
[314402750,1708291832226,-152.27397427,0.000278,3]
[314402751,1708291832236,-6940.3,0.00027868,2]
[314402752,1708291832246,-22978.7,0.00027868,2]
[314402753,1708291832257,-1327.74911208,0.00027898,2]
[314402754,1708291832268,-401794.9453,0.000279,2]
[314402755,1708291832278,-252.8402,0.000279,2]
[314402756,1708291832288,-2790.06,0.00027934,2]
[314402757,1708291832300,-161.27842766,0.00027998,2]
[314402758,1708291832310,-156.34299986,0.00027998,2]
[314402759,1708291832320,-568.67176012,0.00027999,2]
[314402761,1708291832331,-183.19820565,0.00027999,2]
[314402763,1708291832342,-111212.65471133,0.00028,2]
[314402765,1708291832352,-154.73135926,0.00028039,2]
[314402767,1708291832363,-2373.53,0.00028072,2]
[314402770,1708291832373,-200.0,0.00028094,2]
[314402773,1708291832383,-1196.99,0.00028173,2]
[314402775,1708291832394,-222.71,0.00028196,2]
[314402777,1708291832404,-179.46,0.00028266,2]
[314402779,1708291832415,-959.01,0.0002827,2]
[314402781,1708291832425,-1327.74911209,0.00028333,2]
[314402783,1708291832435,-6768.7,0.00028343,2]
[314402784,1708291832445,-179.46,0.00028344,2]
[314402785,1708291832456,-179.46,0.00028421,2]
[314402786,1708291832466,-959.01,0.00028433,2]
[314402787,1708291832476,-1295.82106052,0.00028434,2]
[314402788,1708291832487,-782.48,0.00028491,2]
[314402789,1708291832497,-179.46,0.00028499,2]
[314402790,1708291832507,-179.46,0.00028576,2]
[314402791,1708291832518,-959.01,0.00028596,2]
[314402792,1708291832528,-154.73135926,0.0002863,2]
[314402793,1708291832538,-179.46,0.00028654,2]
[314402794,1708291832550,-165.52,0.00028667,2]
[314402795,1708291832560,-179.46,0.00028731,2]
[314402796,1708291832570,-959.01,0.0002876,2]
[314402797,1708291832581,-155.0,0.00028767,2]
[314402798,1708291832591,-179.46,0.00028809,2]
[314402799,1708291832603,-179.46,0.00028886,2]
[314402800,1708291832614,-959.01,0.00028923,2]
[314402801,1708291832625,-179.46,0.00028964,2]
[314402802,1708291832637,-650.0,0.00029,3]
[314402803,1708291832647,-179.46,0.00029041,2]
[314402804,1708291832658,-959.01,0.00029086,2]
[314402805,1708291832669,-179.46,0.00029119,2]
[314402806,1708291832680,-179.46,0.00029196,2]
[314402807,1708291832690,-154.73135926,0.0002922,2]
[314402808,1708291832701,-959.01,0.0002925,2]
[314402809,1708291832711,-179.46,0.00029274,2]
[314402810,1708291832735,-179.46,0.00029351,2]
[314402811,1708291832748,-959.01,0.00029413,2]
[314402812,1708291832761,-179.46,0.00029429,2]
[314402813,1708291832773,-179.46,0.00029507,2]
[314402814,1708291832784,-959.01,0.00029576,2]
[314402815,1708291832796,-2790.06,0.00029577,2]
[314402816,1708291832807,-179.46,0.00029584,2]
[314402817,1708291832819,-179.46,0.00029662,2]
[314402818,1708291832830,-152.27397423,0.000297,4]
[314402819,1708291832841,-179.46,0.00029739,2]
[314402820,1708291832852,-959.01,0.0002974,2]
[314402821,1708291832863,-154.73135926,0.00029811,2]
[314402822,1708291832875,-19270.91734354,0.000299,2]
[314402823,1708291832886,-159.03,0.00029989,2]
[314402824,1708291832898,-1558.66041576,0.0003,4]
[314402825,1708291832910,-1879.92775,0.0003,2]
[314402826,1708291832921,-541.34,0.0003007,2]
[314402827,1708291832933,-822.88059394,0.000301,2]
[314402828,1708291832943,-250.0,0.00030119,2]
[314402829,1708291832956,-210.0,0.00030136,2]
[314402830,1708291832968,-155.0,0.00030137,2]
[314402831,1708291832980,-200.0,0.00030144,2]
[314402832,1708291832990,-458.66,0.00030204,2]
[314402833,1708291833255,-298.0,0.00030216,3]
[314402834,1708291833279,-154.73135926,0.00030402,2]
[314402835,1708291833291,-782.48,0.00030755,2]
[314402836,1708291833300,-155.08,0.00030838,2]
[314402837,1708291833309,-16031.51974699,0.000309,2]
[314402838,1708291833323,-166.52,0.00030992,2]
[314402839,1708291833332,-154.73135926,0.00030993,2]
[314402840,1708291833342,-700.0,0.00031,3]
[314402841,1708291833351,-2790.06,0.00031221,2]
[314402842,1708291833361,-529.05,0.00031303,2]
[314402843,1708291833370,-168.94,0.00031316,2]
[314402844,1708291833379,-273.19,0.00031425,2]
[314402845,1708291833388,-698.13,0.00031449,2]
[314402846,1708291833398,-529.05,0.00031468,2]
[314402847,1708291833407,-155.0,0.00031507,2]
[314402848,1708291833416,-154.73135926,0.00031583,2]
[314402849,1708291833426,-152.27397423,0.000316,5]
[314402850,1708291833435,-529.05,0.00031633,2]
[314402851,1708291833444,-1671.93447688,0.00031781,7]
[314402852,1708291833454,-404.09077224,0.00031781,7]
[314402853,1708291833463,-529.05,0.00031798,2]
[314402854,1708291833472,-529.05,0.00031962,2]
[314402855,1708291833482,-159.03,0.0003211,2]
[314402856,1708291833491,-529.05,0.00032127,2]
[314402857,1708291833501,-154.73135926,0.00032174,2]
[314402858,1708291833510,-529.05,0.00032292,2]
[314402859,1708291833520,-1926.0,0.000323,2]
[314402860,1708291833529,-15459.0,0.000323,2]
[314402861,1708291833538,-529.05,0.00032457,2]
[314402862,1708291833548,-529.05,0.00032621,2]
[314402863,1708291833558,-154.73135926,0.00032765,2]
[314402864,1708291833567,-529.05,0.00032786,2]
[314402865,1708291833577,-2790.06,0.00032865,2]
[314402866,1708291833586,-1000.0,0.00032944,2]
[314402867,1708291833595,-529.05,0.00032951,2]
[314402868,1708291833605,-273.19,0.00032996,2]
[314402869,1708291833615,-750.0,0.00033,3]
[314402870,1708291833625,-782.48,0.00033019,2]
[314402871,1708291833634,-529.05,0.00033116,2]
[314402872,1708291833643,-293.0,0.00033149,2]
[314402873,1708291833653,-529.05,0.00033281,2]
[314402874,1708291833663,-207.0,0.00033304,2]
[314402875,1708291833673,-154.73135926,0.00033356,2]
[314402876,1708291833682,-529.05,0.00033445,2]
[314402877,1708291833691,-152.27397423,0.00033501,6]
[314402878,1708291833700,-166.52,0.0003355,2]
[314402879,1708291833710,-458.66,0.0003356,2]
[314402880,1708291833719,-529.05,0.0003361,2]
[314402881,1708291833728,-529.05,0.00033775,2]
[314402882,1708291833737,-541.34,0.00033829,2]
[314402883,1708291833747,-529.05,0.0003394,2]
[314402884,1708291833756,-154.73135926,0.00033946,2]
[314402885,1708291833765,-529.05,0.00034104,2]
[314402886,1708291833774,-159.03,0.00034231,2]
[314402887,1708291833783,-529.05,0.00034269,2]
[314402888,1708291833793,-1000.0,0.00034355,2]
[314402889,1708291833802,-529.05,0.00034434,2]
[314402890,1708291833811,-2790.06,0.00034509,2]
[314402891,1708291833821,-36032.992084,0.0003452,2]
[314402892,1708291833830,-470.48,0.00034521,2]
[314402893,1708291833839,-154.73135926,0.00034537,2]
[314402894,1708291833848,-273.19,0.00034567,2]
[314402895,1708291833860,-530.53555462,0.000347,2]
[314402896,1708291833870,-5157.37498128,0.00034794,2]
[314402897,1708291833961,-800.0,0.00034794,2]
[314403133,1708291840568,-1806.54464247,0.00027397,3]
[314403135,1708291840577,-174.31727813,0.00034794,2]
[314403137,1708291840589,-920.69902626,0.00034794,2]
[314403140,1708291840600,-2155.72013022,0.00034794,2]
[314403142,1708291840613,-44841.37671111,0.00034794,2]
[314403144,1708291840622,-188.50717979,0.000348,2]
[314403146,1708291840632,-1902.50534643,0.000349,2]
[314403148,1708291840641,-72065.984169,0.00034931,2]
[314403150,1708291840651,-24103.20109137,0.00035,4]
[314403166,1708291840793,-1116.05941324,0.00035,4]
[314403404,1708291843085,-3817.08989012,0.00035,4]
[314403638,1708291845429,-370963.64960527,0.00035,4]
[314403640,1708291845439,-800.0,0.00035,3]
[314403643,1708291845449,-1879.92775,0.00035,2]
[314403645,1708291845458,-90082.480212,0.00035068,2]
[314403647,1708291845468,-154.73135926,0.00035128,2]
[314403649,1708291845478,-782.48,0.00035283,2]
[314403651,1708291845488,-126115.472297,0.00035342,2]
[314403652,1708291845498,-152.27397423,0.00035401,7]
[314403654,1708291845507,-151.0,0.0003551,7]
[314403656,1708291845516,-500.0,0.000356,2]
[314403658,1708291845526,-507.34731143,0.00035616,2]
[314403660,1708291845536,-537.73984954,0.00035616,2]
[314403663,1708291845546,-523.2026917,0.00035616,2]
[314403665,1708291845556,-506.04461456,0.00035616,2]
[314403666,1708291845566,-512.70883258,0.00035616,2]
[314403668,1708291845575,-552.93643605,0.00035616,2]
[314403670,1708291845584,-526.81539572,0.00035616,2]
[314403672,1708291845594,-546.3495961,0.00035616,2]
[314403675,1708291845603,-515.71817487,0.00035616,2]
[314403677,1708291845614,-528.03743849,0.00035616,2]
[314403679,1708291845623,-535.99427705,0.00035616,2]
[314403681,1708291845633,-500.0,0.00035616,2]
[314403683,1708291845642,-500.0,0.00035616,2]
[314403685,1708291845651,-500.0,0.00035616,2]
[314403687,1708291845661,-347.8615488,0.00035616,2]
[314403689,1708291845670,-263.8962871,0.00035616,2]
[314403691,1708291845680,-523.71733456,0.00035616,2]
[314403693,1708291845689,-532.59610649,0.00035616,2]
[314403695,1708291845698,-500.0,0.00035616,2]
[314403697,1708291845707,-500.0,0.00035616,2]
[314403699,1708291845716,-540.75367927,0.00035616,2]
[314403701,1708291845725,-500.0,0.00035616,2]
[314403703,1708291845735,-500.0,0.00035616,2]
[314403705,1708291845745,-500.0,0.00035616,2]
[314403707,1708291845754,-500.0,0.00035616,2]
[314403709,1708291845763,-500.0,0.00035616,2]
[314403711,1708291845773,-500.0,0.00035616,2]
[314403713,1708291845782,-332.0,0.00035616,2]
[314403715,1708291845791,-454.59,0.00035616,2]
[314403717,1708291845800,-500.0,0.00035616,2]
[314403719,1708291845810,-500.0,0.00035616,2]
[314403721,1708291845819,-618.00241363,0.00035616,2]
[314403723,1708291845829,-499.95520058,0.00035616,2]
[314403725,1708291845839,-532.73344265,0.00035616,2]
[314403728,1708291845848,-500.0,0.00035616,2]
[314403731,1708291845858,-500.0,0.00035616,2]
[314403734,1708291845868,-500.0,0.00035616,2]
[314403737,1708291845877,-509.32401808,0.00035616,2]
[314403740,1708291845886,-500.0,0.00035616,2]
[314403743,1708291845896,-500.0,0.00035616,2]
[314403746,1708291845906,-500.0,0.00035616,2]
[314403749,1708291845915,-500.0,0.00035616,2]
[314403752,1708291845924,-507.16321768,0.00035616,2]
[314403755,1708291845934,-500.0,0.00035616,2]
[314403758,1708291845943,-627.36,0.00035616,2]
[314403761,1708291845953,-500.0,0.00035616,2]
[314403765,1708291845963,-500.0,0.00035616,2]
[314403767,1708291845972,-500.0,0.00035616,2]
[314403770,1708291845981,-500.0,0.00035616,2]
[314403773,1708291845990,-500.0,0.00035616,2]
[314403776,1708291845999,-606.88869481,0.00035616,2]
[314403779,1708291846009,-531.85,0.00035616,2]
[314403782,1708291846018,-500.0,0.00035616,2]
[314403786,1708291846028,-500.0,0.00035616,2]
[314403790,1708291846037,-648.60354385,0.00035616,2]
[314403793,1708291846047,-500.0,0.00035616,2]
[314403795,1708291846056,-500.0,0.00035616,2]
[314403799,1708291846067,-500.0,0.00035616,2]
[314403802,1708291846077,-500.0,0.00035616,2]
[314403803,1708291846087,-1014.3,0.00035616,2]
[314403804,1708291846096,-1014.3,0.00035616,2]
[314403805,1708291846105,-1014.3,0.00035616,2]
[314403806,1708291846114,-491.37861778,0.00035616,2]
[314403807,1708291846124,-500.0,0.00035616,2]
[314403808,1708291846133,-500.0,0.00035616,2]
[314403809,1708291846143,-500.0,0.00035616,2]
[314403810,1708291846154,-500.0,0.00035616,2]
[314403811,1708291846164,-507.21928711,0.00035616,2]
[314403813,1708291846173,-529.49487805,0.00035616,2]
[314403814,1708291846183,-500.0,0.00035616,2]
[314403816,1708291846192,-500.0,0.00035616,2]
[314403818,1708291846201,-500.0,0.00035616,2]
[314403820,1708291846210,-500.0,0.00035616,2]
[314403822,1708291846219,-500.0,0.00035616,2]
[314403823,1708291846228,-500.0,0.00035616,2]
[314403824,1708291846237,-500.0,0.00035616,2]
[314403825,1708291846247,-500.0,0.00035616,2]
[314403826,1708291846256,-500.0,0.00035616,2]
[314403827,1708291846266,-500.0,0.00035616,2]
[314403828,1708291846275,-500.0,0.00035616,2]
[314403829,1708291846284,-516.41225773,0.00035616,2]
[314403830,1708291846293,-500.0,0.00035616,2]
[314403831,1708291846301,-500.0,0.00035616,2]
[314403832,1708291846310,-360.84370662,0.00035616,2]
[314403833,1708291846319,-500.0,0.00035616,2]
[314403834,1708291846329,-500.0,0.00035616,2]
[314403835,1708291846338,-548.39727021,0.00035616,2]
[314403836,1708291846347,-500.0,0.00035616,2]
[314403837,1708291846356,-500.0,0.00035616,2]
[314403838,1708291846367,-500.0,0.00035616,2]
[314403839,1708291846376,-500.0,0.00035616,2]
[314403840,1708291846386,-510.44883349,0.00035616,2]
[314403841,1708291846395,-500.0,0.00035616,2]
[314403842,1708291846405,-500.0,0.00035616,2]
[314403843,1708291846414,-500.0,0.00035616,2]
[314403844,1708291846423,-500.0,0.00035616,2]
[314403845,1708291846432,-500.0,0.00035616,2]
[314403846,1708291846442,-500.0,0.00035616,2]
[314403847,1708291846451,-552.2,0.00035616,2]
[314403848,1708291846461,-470.43,0.00035616,2]
[314403850,1708291846471,-500.0,0.00035616,2]
[314403851,1708291846480,-500.0,0.00035616,2]
[314403852,1708291846489,-500.0,0.00035616,2]
[314403853,1708291846499,-500.0,0.00035616,2]
[314403854,1708291846508,-500.0,0.00035616,2]
[314403855,1708291846518,-500.0,0.00035616,2]
[314403856,1708291846527,-500.0,0.00035616,2]
[314403857,1708291846537,-500.0,0.00035616,2]
[314403858,1708291846546,-500.0,0.00035616,2]
[314403859,1708291846555,-831.66,0.00035616,2]
[314403860,1708291846564,-831.66,0.00035616,2]
[314403861,1708291846574,-831.66,0.00035616,2]
[314403862,1708291846583,-831.66,0.00035616,2]
[314403863,1708291846593,-500.0,0.00035616,2]
[314403864,1708291846602,-500.0,0.00035616,2]
[314403865,1708291846612,-255.67431012,0.00035616,2]
[314403866,1708291846621,-500.0,0.00035616,2]
[314403867,1708291846631,-500.0,0.00035616,2]
[314403868,1708291846640,-500.0,0.00035616,2]
[314403869,1708291846649,-500.0,0.00035616,2]
[314403870,1708291846658,-500.0,0.00035616,2]
[314403871,1708291846668,-500.0,0.00035616,2]
[314403872,1708291846678,-513.87,0.00035616,2]
[314403873,1708291846687,-500.0,0.00035616,2]
[314403874,1708291846697,-500.0,0.00035616,2]
[314403875,1708291846706,-500.0,0.00035616,2]
[314403876,1708291846716,-500.0,0.00035616,2]
[314403877,1708291846725,-500.0,0.00035616,2]
[314403878,1708291846735,-500.0,0.00035616,2]
[314403879,1708291846745,-154.73135926,0.00035719,2]
[314403880,1708291846754,-1000.0,0.00035766,2]
[314403881,1708291846764,-470.48,0.00035798,2]
[314403882,1708291846773,-500.0,0.0003589,7]
[314403883,1708291846783,-150.0,0.00035986,2]
[314403884,1708291846793,-4483.35,0.0003599,2]
[314403885,1708291846802,-493.597711,0.00036,4]
[314403886,1708291846812,-177.48,0.000361,2]
[314403887,1708291846821,-150.0,0.000361,2]
[314403888,1708291846830,-166.52,0.00036108,2]
[314403889,1708291846840,-273.19,0.00036138,2]
[314403890,1708291846849,-2790.06,0.00036153,2]
[314403891,1708291846858,-500.0,0.00036199,2]
[314403892,1708291846869,-831.66,0.00036199,2]
[314403893,1708291846878,-500.0,0.00036199,2]
[314403894,1708291846888,-200.0,0.000362,9]
[314403895,1708291846897,-151.0,0.00036235,4]
[314403896,1708291846906,-530.53555462,0.00036244,2]
[314403897,1708291846915,-154.73135926,0.00036309,2]
[314403898,1708291846924,-159.03,0.00036353,2]
[314403899,1708291846934,-500.0,0.00036387,2]
[314403900,1708291846943,-500.0,0.00036387,2]
[314403901,1708291846953,-1000.0,0.00036387,7]
[314403902,1708291846962,-500.0,0.00036387,2]
[314403903,1708291846971,-500.0,0.00036387,2]
[314403904,1708291846981,-555.81819854,0.00036387,2]
[314403905,1708291846991,-500.0,0.00036387,2]
[314403906,1708291847000,-539.46,0.00036387,2]
[314403907,1708291847009,-500.19,0.00036388,2]
[314403908,1708291847018,-518.16138907,0.00036388,2]
[314403909,1708291847027,-500.0,0.00036388,2]
[314403910,1708291847036,-500.0,0.00036388,2]
[314403911,1708291847045,-500.0,0.00036388,2]
[314403912,1708291847055,-5868.00647144,0.00036389,2]
[314403913,1708291847064,-5868.00647139,0.00036389,2]
[314403914,1708291847074,-5868.00647139,0.00036389,2]
[314403915,1708291847126,-5868.00647139,0.00036389,2]
[314403916,1708291847136,-5868.00647139,0.00036389,2]
[314403917,1708291847145,-5868.00647139,0.00036389,2]
[314403918,1708291847156,-5868.00647139,0.00036389,2]
[314403919,1708291847165,-152.0,0.00036438,3]
[314403920,1708291847174,-1902.50534642,0.00036479,2]
[314403921,1708291847183,-173.5,0.0003662,2]
[314403922,1708291847195,-354.66,0.00036648,2]
[314403923,1708291847205,-151.06286209,0.00036648,2]
[314403924,1708291847213,-3340.91575149,0.00036798,2]
[314403925,1708291847223,-3340.91575148,0.00036798,2]
[314403926,1708291847232,-3340.91575148,0.00036798,2]
[314403927,1708291847241,-3340.91575148,0.00036798,2]
[314403928,1708291847251,-3340.91575148,0.00036798,2]
[314403929,1708291847260,-3340.91575148,0.00036798,2]
[314403930,1708291847269,-3340.91575148,0.00036798,2]
[314403931,1708291847279,-1292297.64351611,0.00036798,2]
[314403932,1708291847288,-1014.3,0.00036799,2]
[314403933,1708291847297,-500.0,0.00036799,2]
[314403934,1708291847306,-500.0,0.00036799,2]
[314403935,1708291847315,-500.0,0.00036799,2]
[314403936,1708291847324,-831.66,0.00036799,2]
[314403937,1708291847333,-831.66,0.00036799,2]
[314403938,1708291847342,-831.66,0.00036799,2]
[314403939,1708291847351,-292.28,0.00036799,2]
[314403940,1708291847360,-144131.968339,0.000368,2]
[314403941,1708291847371,-3032.73646969,0.000368,9]
[314403942,1708291847380,-184.28394638,0.00036899,9]
[314403943,1708291847390,-5207.40000001,0.000369,2]
[314403944,1708291847399,-150.0,0.000369,2]
[314403945,1708291847409,-302.58143938,0.000369,5]
[314403946,1708291847418,-415.89549702,0.000369,4]
[314403947,1708291847427,-154.73135926,0.000369,2]
[314403948,1708291847436,-188.50717978,0.000369,2]
[314403949,1708291847446,-374.30001612,0.000369,2]
[314403950,1708291847455,-1721.42362555,0.000369,2]
[314403951,1708291847464,-904.69375382,0.00036914,2]
[314403952,1708291847474,-1160.19964319,0.00036914,2]
[314403953,1708291847483,-928.11450129,0.00036914,2]
[314403954,1708291847492,-458.66,0.00036916,2]
[314403955,1708291847501,-151.0,0.00036974,2]
[314403956,1708291847511,-500.0,0.00036986,7]
[314403957,1708291847520,-150.0,0.00036986,2]
[314403958,1708291847530,-500.0,0.00036999,2]
[314403959,1708291847539,-324.07,0.00036999,2]
[314403960,1708291847548,-571.9,0.00036999,2]
[314403961,1708291847557,-167.74,0.00036999,7]
[314403962,1708291847567,-500.0,0.00036999,2]
[314403963,1708291847576,-150.0,0.00036999,2]
[314403964,1708291847585,-205.02,0.00036999,2]